fUST/lending_fUST_20250727
["ID","MTS","AMOUNT","RATE_DAILY","PERIOD"]
[375202475,1753583469225,-477.10923395,0.00022191,2]
[375202476,1753583469236,-460.0,0.00022191,2]
[375202477,1753583469246,-614.27,0.00022191,2]
[375202478,1753583469256,-460.0,0.00022191,2]
[375202479,1753583469265,-460.0,0.00022191,2]
[375202480,1753583469376,-382.89804031,0.00022242,2]
[375202481,1753583469386,-2386.91,0.00022242,2]
[375202482,1753583469395,-460.0,0.00022242,2]
[375202483,1753583469405,-2639.32,0.00022242,2]
[375202484,1753583469414,-736.92,0.00022242,2]
[375202485,1753583469423,-2430.03,0.00022242,2]
[375202486,1753583469434,-3325.38,0.00022242,2]
[375202487,1753583469443,-4389.18732489,0.00022383,7]
[375202488,1753583469453,-3344.09287984,0.00022431,2]
[375202489,1753583469463,-3500.0,0.0002246,2]
[375202490,1753583469473,-366.14906349,0.00022465,2]
[375202491,1753583469482,-447.81353729,0.00022465,2]
[375202492,1753583469492,-392.71321471,0.00022465,2]
[375202493,1753583469502,-460.0,0.00022465,2]
[375202494,1753583469512,-547.84,0.00022465,2]
[375202495,1753583469523,-631.34,0.00022465,2]
[375202496,1753583469535,-460.0,0.00022465,2]
[375202497,1753583469544,-460.0,0.00022465,2]
[375202498,1753583469554,-353.04,0.00022465,2]
[375202499,1753583469563,-532.26,0.00022465,2]
[375202500,1753583469575,-460.0,0.00022465,2]
[375202501,1753583469584,-460.0,0.00022465,2]
[375202502,1753583469594,-822.33,0.00022465,2]
[375202503,1753583469607,-460.0,0.00022465,2]
[375202504,1753583469617,-876.43,0.00022465,2]
[375202505,1753583469626,-494.95,0.00022465,2]
[375202506,1753583469636,-460.0,0.00022465,2]
[375202507,1753583469646,-891.87,0.00022465,2]
[375202508,1753583469655,-182.925889,0.00022465,7]
[375202509,1753583469665,-460.0,0.00022465,2]
[375202510,1753583469675,-460.0,0.00022465,2]
[375202511,1753583469685,-460.0,0.00022465,2]
[375202512,1753583469694,-460.0,0.00022465,2]
[375202513,1753583469704,-460.0,0.00022465,2]
[375202514,1753583469715,-460.0,0.00022465,2]
[375202515,1753583469725,-513.69,0.00022465,2]
[375202516,1753583469736,-460.0,0.00022465,2]
[375202517,1753583469745,-460.0,0.00022465,2]
[375202518,1753583469757,-460.0,0.00022465,2]
[375202519,1753583469768,-499.86,0.00022465,2]
[375202520,1753583469779,-460.0,0.00022465,2]
[375202521,1753583469788,-467.86450567,0.00022465,2]
[375202522,1753583469798,-460.0,0.00022465,2]
[375202523,1753583469809,-498.19,0.00022465,2]
[375202524,1753583469820,-460.0,0.00022465,2]
[375202525,1753583469829,-460.0,0.00022465,2]
[375202526,1753583469839,-460.0,0.00022465,2]
[375202527,1753583469848,-211.2777497,0.00022465,2]
[375202528,1753583469858,-2168.67,0.00022465,2]
[375202529,1753583469868,-460.0,0.00022465,2]
[375202530,1753583469877,-533.42,0.00022465,2]
[375202531,1753583469887,-990.56,0.00022465,2]
[375202532,1753583469898,-460.0,0.00022465,2]
[375202533,1753583469908,-759.02,0.00022465,2]
[375202534,1753583469919,-569.57,0.00022465,2]
[375202535,1753583469929,-460.0,0.00022465,2]
[375202536,1753583469939,-460.0,0.00022465,2]
[375202537,1753583469949,-550.19,0.00022465,2]
[375202538,1753583469960,-460.0,0.00022465,2]
[375202539,1753583469968,-151.0,0.00022465,7]
[375202540,1753583469979,-734.23,0.00022465,2]
[375202541,1753583469988,-708.32,0.00022465,2]
[375202542,1753583469998,-460.0,0.00022465,2]
[375202543,1753583470010,-460.0,0.00022465,2]
[375202544,1753583470021,-460.0,0.00022465,2]
[375202545,1753583470032,-151.0,0.00022465,7]
[375202546,1753583470042,-309.65375379,0.00022465,2]
[375202547,1753583470052,-151.0,0.00022465,7]
[375202548,1753583470061,-2306.74,0.00022465,2]
[375202549,1753583470072,-491.72,0.00022465,2]
[375202550,1753583470082,-460.0,0.00022465,2]
[375202551,1753583470095,-688.32,0.00022465,2]
[375202552,1753583470106,-1628.62,0.00022465,2]
[375202553,1753583470116,-632.34,0.00022465,2]
[375202554,1753583470126,-460.0,0.00022465,2]
[375202555,1753583470135,-460.0,0.00022465,2]
[375202556,1753583470145,-670.75,0.00022465,2]
[375202557,1753583470155,-3263.29,0.00022465,2]
[375202558,1753583470165,-516.66,0.00022465,2]
[375202559,1753583470176,-599.61,0.00022465,2]
[375202560,1753583470185,-4844.33,0.00022465,2]
[375202561,1753583470195,-1875.66,0.00022465,2]
[375202562,1753583470205,-1340.76,0.00022465,2]
[375202563,1753583470215,-460.0,0.00022465,2]
[375202564,1753583470225,-724.58,0.00022465,2]
[375202565,1753583470235,-629.06,0.00022465,2]
[375202566,1753583470245,-1096.6,0.00022465,2]
[375202567,1753583470255,-460.0,0.00022465,2]
[375202568,1753583470265,-629.24,0.00022465,2]
[375202569,1753583470274,-598.65,0.00022465,2]
[375202570,1753583470284,-302.61207232,0.00022465,2]
[375202571,1753583470293,-1031.22,0.00022465,2]
[375202572,1753583470303,-3128.32,0.00022465,2]
[375202573,1753583470312,-551.87,0.00022465,2]
[375202574,1753583470322,-460.0,0.00022465,2]
[375202575,1753583470332,-502.57,0.00022465,2]
[375202576,1753583470343,-460.0,0.00022465,2]
[375202577,1753583470353,-540.2,0.00022465,2]
[375202578,1753583470363,-1708.28,0.00022465,2]
[375202579,1753583470374,-480.15,0.00022465,2]
[375202580,1753583470384,-460.0,0.00022465,2]
[375202581,1753583470396,-466.56677393,0.00022465,2]
[375202582,1753583470405,-530.23,0.00022465,2]
[375202583,1753583470415,-509.37,0.00022465,2]
[375202584,1753583470424,-735.01,0.00022465,2]
[375202585,1753583470433,-460.0,0.00022465,2]
[375202586,1753583470443,-1674.76,0.00022465,2]
[375202587,1753583470452,-2030.86,0.00022465,2]
[375202588,1753583470461,-465.72489267,0.00022465,2]
[375202589,1753583470470,-679.1,0.00022465,2]
[375202590,1753583470480,-466.39,0.00022465,2]
[375202591,1753583470489,-2506.87,0.00022465,2]
[375202592,1753583470499,-240.76110795,0.00022465,2]
[375202593,1753583470509,-460.0,0.00022465,2]
[375202594,1753583470518,-460.0,0.00022465,2]
[375202595,1753583470531,-983.88,0.00022465,2]
[375202596,1753583470540,-767.78,0.00022465,2]
[375202597,1753583470551,-460.0,0.00022465,2]
[375202598,1753583470560,-460.0,0.00022465,2]
[375202599,1753583470571,-614.27,0.00022465,2]
[375202600,1753583470580,-460.0,0.00022465,2]
[375202601,1753583470590,-460.0,0.00022465,2]
[375202602,1753583470601,-300.80236473,0.00022466,2]
[375202603,1753583470612,-46252.08771266,0.0002249,7]
[375202604,1753583470621,-857.11,0.000225,2]
[375202605,1753583470631,-3801.642,0.00022503,2]
[375202606,1753583470642,-151.0,0.00022503,2]
[375202607,1753583470651,-151.0,0.00022503,2]
[375202608,1753583470661,-25000.0,0.00022503,2]
[375202609,1753583470670,-151.0,0.00022503,2]
[375202610,1753583470680,-151.0,0.00022503,2]
[375202611,1753583470689,-151.0,0.00022503,2]
[375202612,1753583470698,-151.0,0.00022503,2]
[375202613,1753583470707,-151.0,0.00022503,2]
[375202614,1753583470716,-11044.3831077,0.00022503,2]
[375202615,1753583470726,-151.0,0.00022503,2]
[375202616,1753583470736,-151.0,0.00022503,2]
[375202617,1753583470746,-268.61799683,0.00022503,2]
[375202618,1753583470756,-151.0,0.00022503,2]
[375202619,1753583470766,-151.0,0.00022503,2]
[375202620,1753583470775,-151.0,0.00022503,2]
[375202621,1753583470785,-151.0,0.00022503,2]
[375202622,1753583470794,-291.18913902,0.00022503,2]
[375202623,1753583470803,-151.0,0.00022503,2]
[375202624,1753583470813,-502.05411089,0.00022503,2]
[375202625,1753583470823,-151.0,0.00022503,2]
[375202626,1753583470832,-151.0,0.00022503,2]
[375202627,1753583470842,-151.0,0.00022503,2]
[375202628,1753583470851,-160.92674283,0.00022503,2]
[375202629,1753583470860,-151.0,0.00022503,7]
[375202630,1753583470870,-153.591479,0.00022516,7]
[375202631,1753583470879,-2386.91,0.00022516,2]
[375202632,1753583470889,-460.0,0.00022516,2]
[375202633,1753583470898,-2639.32,0.00022516,2]
[375202634,1753583470908,-151.0,0.00022516,7]
[375202635,1753583470917,-736.92,0.00022516,2]
[375202636,1753583470927,-2430.03,0.00022516,2]
[375202637,1753583470936,-3325.38,0.00022516,2]
[375202638,1753583470947,-3942.302754,0.00022558,2]
[375202639,1753583470959,-4389.18732489,0.0002259,7]
[375202640,1753583470970,-4088.1679559,0.00022613,2]
[375202641,1753583470981,-396.0,0.00022656,2]
[375202642,1753583470991,-1448.0,0.00022657,2]
[375202643,1753583471000,-4239.43017027,0.00022668,2]
[375202644,1753583471011,-4396.28908657,0.00022723,2]
[375202645,1753583471021,-460.0,0.00022739,2]
[375202646,1753583471031,-547.84,0.00022739,2]
[375202647,1753583471041,-631.34,0.00022739,2]
[375202648,1753583471052,-460.0,0.00022739,2]
[375202649,1753583471060,-278.18022377,0.00022739,2]
[375202650,1753583471068,-532.26,0.00022739,2]
[375202651,1753583471077,-308.40231886,0.00022739,2]
[375202652,1753583471087,-460.0,0.00022739,2]
[375202653,1753583471098,-822.33,0.00022739,2]
[375202654,1753583471107,-460.0,0.00022739,2]
[375202655,1753583471116,-876.43,0.00022739,2]
[375202656,1753583471126,-494.95,0.00022739,2]
[375202657,1753583471135,-460.0,0.00022739,2]
[375202658,1753583471144,-891.87,0.00022739,2]
[375202659,1753583471154,-460.0,0.00022739,2]
[375202660,1753583471165,-467.37596124,0.00022739,2]
[375202661,1753583471174,-460.0,0.00022739,2]
[375202662,1753583471184,-460.0,0.00022739,2]
[375202663,1753583471193,-355.95173932,0.00022739,2]
[375202664,1753583471203,-460.0,0.00022739,2]
[375202665,1753583471213,-513.69,0.00022739,2]
[375202666,1753583471223,-460.0,0.00022739,2]
[375202667,1753583471232,-460.0,0.00022739,2]
[375202668,1753583471242,-499.86,0.00022739,2]
[375202669,1753583471251,-460.0,0.00022739,2]
[375202670,1753583471260,-460.0,0.00022739,2]
[375202671,1753583471270,-498.19,0.00022739,2]
[375202672,1753583471280,-460.0,0.00022739,2]
[375202673,1753583471290,-460.0,0.00022739,2]
[375202674,1753583471299,-381.01201037,0.00022739,2]
[375202675,1753583471308,-2168.67,0.00022739,2]
[375202676,1753583471318,-460.0,0.00022739,2]
[375202677,1753583471327,-533.42,0.00022739,2]
[375202678,1753583471336,-990.56,0.00022739,2]
[375202679,1753583471346,-460.0,0.00022739,2]
[375202680,1753583471355,-759.02,0.00022739,2]
[375202681,1753583471365,-569.57,0.00022739,2]
[375202682,1753583471375,-460.0,0.00022739,2]
[375202683,1753583471384,-460.0,0.00022739,2]
[375202684,1753583471395,-550.19,0.00022739,2]
[375202685,1753583471405,-249.19275384,0.00022739,2]
[375202686,1753583471417,-734.23,0.00022739,2]
[375202687,1753583471427,-708.32,0.00022739,2]
[375202688,1753583471437,-470.11417675,0.00022739,2]
[375202689,1753583471447,-460.0,0.00022739,2]
[375202690,1753583471457,-460.0,0.00022739,2]
[375202691,1753583471468,-2306.74,0.00022739,2]
[375202692,1753583471478,-491.72,0.00022739,2]
[375202693,1753583471488,-428.63391998,0.00022739,2]
[375202694,1753583471497,-688.32,0.00022739,2]
[375202695,1753583471507,-632.34,0.00022739,2]
[375202696,1753583471516,-460.0,0.00022739,2]
[375202697,1753583471530,-670.75,0.00022739,2]
[375202698,1753583471540,-3263.29,0.00022739,2]
[375202699,1753583471549,-516.66,0.00022739,2]
[375202700,1753583471558,-4844.33,0.00022739,2]
[375202701,1753583471569,-1875.66,0.00022739,2]
[375202702,1753583471578,-1340.76,0.00022739,2]
[375202703,1753583471588,-460.0,0.00022739,2]
[375202704,1753583471598,-599.61,0.00022739,2]
[375202705,1753583471608,-629.06,0.00022739,2]
[375202706,1753583471617,-724.58,0.00022739,2]
[375202707,1753583471627,-1096.6,0.00022739,2]
[375202708,1753583471637,-460.0,0.00022739,2]
[375202709,1753583471646,-629.24,0.00022739,2]
[375202710,1753583471655,-598.65,0.00022739,2]
[375202711,1753583471664,-1031.22,0.00022739,2]
[375202712,1753583471674,-3128.32,0.00022739,2]
[375202713,1753583471684,-551.87,0.00022739,2]
[375202714,1753583471694,-460.0,0.00022739,2]
[375202715,1753583471703,-502.57,0.00022739,2]
[375202716,1753583471713,-460.0,0.00022739,2]
[375202717,1753583471722,-540.2,0.00022739,2]
[375202718,1753583471732,-1708.28,0.00022739,2]
[375202719,1753583471741,-480.15,0.00022739,2]
[375202720,1753583471751,-460.0,0.00022739,2]
[375202721,1753583471760,-530.23,0.00022739,2]
[375202722,1753583471770,-509.37,0.00022739,2]
[375202723,1753583471780,-735.01,0.00022739,2]
[375202724,1753583471789,-460.0,0.00022739,2]
[375202725,1753583471799,-1674.76,0.00022739,2]
[375202726,1753583471808,-892.67641833,0.00022739,2]
[375202727,1753583472231,-460.0,0.00019178,2]
[375202728,1753583472242,-33.28256153,0.00019178,2]
[375202729,1753583472254,-426.71743847,0.00019178,2]
[375202730,1753583472263,-538.62,0.00019226,2]
[375202731,1753583472273,-538.62,0.00019227,2]
[375202732,1753583472282,-538.62,0.00019227,2]
[375202733,1753583472291,-538.62,0.00019227,2]
[375202734,1753583472301,-538.62,0.00019227,2]
[375202735,1753583472311,-538.62,0.00019227,2]
[375202736,1753583472321,-538.62,0.00019227,2]
[375202737,1753583472330,-538.62,0.00019227,2]
[375202738,1753583472340,-460.0,0.00019452,2]
[375202739,1753583472350,-162.15454695,0.00019452,2]
[375202740,1753583472361,-460.0,0.00019726,2]
[375202741,1753583472371,-890.42,0.0002,2]
[375202742,1753583472380,-460.0,0.0002,2]
[375202743,1753583472390,-625.79272763,0.00020273,2]
[375202744,1753583472652,-538.62,0.00019227,2]
[375202745,1753583472662,-538.62,0.00019227,2]
[375202746,1753583472672,-328.75201063,0.00019272,2]
[375202747,1753583472697,-209.86798937,0.00019272,2]
[375202748,1753583472706,-538.62,0.00019397,2]
[375202749,1753583472716,-538.62,0.00019397,2]
[375202750,1753583472726,-538.62,0.00019397,2]
[375202751,1753583472735,-538.62,0.00019397,2]
[375202752,1753583472744,-538.62,0.00019397,2]
[375202753,1753583472755,-264.62727237,0.00020273,2]
[375202754,1753583472765,-460.0,0.00020273,2]
[375202755,1753583472775,-890.42,0.00020547,2]
[375202756,1753583472786,-467.17609631,0.00020547,2]
[375202757,1753583472796,-890.42,0.00020821,2]
[375202758,1753583472806,-1803.34,0.00021095,2]
[375202759,1753583472816,-890.42,0.00021095,2]
[375202760,1753583472827,-1803.34,0.00021369,2]
[375202761,1753583472837,-890.42,0.00021369,2]
[375202762,1753583472847,-1803.34,0.00021643,2]
[375202763,1753583472856,-570.58774649,0.00021643,2]
[375202764,1753583472869,-319.83225351,0.00021643,2]
[375202765,1753583472879,-1474.49761059,0.00021917,2]
[375202766,1753583472891,-328.84238941,0.00021917,2]
[375202767,1753583472902,-890.42,0.00021917,2]
[375202768,1753583472912,-390.16500127,0.00022191,2]
[375202769,1753583473136,-460.0,0.00019178,2]
[375202770,1753583473146,-460.0,0.00019178,2]
[375202771,1753583473156,-538.62,0.00019397,2]
[375202772,1753583473166,-538.62,0.00019397,2]
[375202773,1753583473175,-538.62,0.00019397,2]
[375202774,1753583473185,-538.62,0.00019397,2]
[375202775,1753583473195,-538.62,0.00019397,2]
[375202776,1753583473205,-538.62,0.00019397,2]
[375202777,1753583473215,-460.0,0.00019452,2]
[375202778,1753583473224,-460.0,0.00019452,2]
[375202779,1753583473234,-460.0,0.00019726,2]
[375202780,1753583473244,-460.0,0.0002,2]
[375202781,1753583473253,-460.0,0.00020273,2]
[375202782,1753583473263,-460.0,0.00020547,2]
[375202783,1753583473273,-396.21301044,0.00020821,2]
[375202784,1753583473285,-69.83499873,0.00022191,2]
[375202785,1753583473295,-1381.75977403,0.00022191,2]
[375202786,1753583473307,-421.58022597,0.00022191,2]
[375202787,1753583473317,-394.08234742,0.00022191,2]
[375202788,1753583473329,-496.33765258,0.00022191,2]
[375202789,1753583473338,-460.0,0.00022465,2]
[375202790,1753583473348,-1113.29706053,0.00022465,2]
[375202791,1753583473360,-690.04293947,0.00022465,2]
[375202792,1753583473371,-890.42,0.00022465,2]
[375202793,1753583473382,-151.0,0.00022503,2]
[375202794,1753583473392,-151.0,0.00022503,2]
[375202795,1753583473402,-151.0,0.00022503,2]
[375202796,1753583473412,-151.0,0.00022503,2]
[375202797,1753583473422,-151.0,0.00022503,2]
[375202798,1753583473432,-151.0,0.00022503,2]
[375202799,1753583473442,-151.0,0.00022503,2]
[375202800,1753583473452,-151.0,0.00022503,2]
[375202801,1753583473462,-151.0,0.00022503,2]
[375202802,1753583473471,-151.0,0.00022503,2]
[375202803,1753583473481,-1138.18358167,0.00022739,2]
[375202804,1753583473492,-679.1,0.00022739,2]
[375202805,1753583473502,-466.39,0.00022739,2]
[375202806,1753583473511,-2506.87,0.00022739,2]
[375202807,1753583473523,-460.0,0.00022739,2]
[375202808,1753583473535,-460.0,0.00022739,2]
[375202809,1753583473545,-983.88,0.00022739,2]
[375202810,1753583473556,-767.78,0.00022739,2]
[375202811,1753583473568,-460.0,0.00022739,2]
[375202812,1753583473580,-460.0,0.00022739,2]
[375202813,1753583473589,-614.27,0.00022739,2]
[375202814,1753583473598,-460.0,0.00022739,2]
[375202815,1753583473609,-460.0,0.00022739,2]
[375202816,1753583473621,-460.0,0.00022739,2]
[375202817,1753583473631,-890.42,0.00022739,2]
[375202818,1753583473640,-1803.34,0.00022739,2]
[375202819,1753583473650,-4702.83374252,0.00022756,2]
[375202820,1753583473661,-2167.2,0.00022767,2]
[375202821,1753583473671,-973.257,0.00022767,2]
[375202822,1753583473680,-409.224,0.00022767,2]
[375202823,1753583473692,-2386.91,0.0002279,2]
[375202824,1753583473702,-460.0,0.0002279,2]
[375202825,1753583473711,-2639.32,0.0002279,2]
[375202826,1753583473721,-736.92,0.0002279,2]
[375202827,1753583473732,-2430.03,0.0002279,2]
[375202828,1753583473743,-3325.38,0.0002279,2]
[375202829,1753583473753,-4389.18732489,0.00022797,7]
[375202830,1753583473763,-500.0,0.00022808,2]
[375202831,1753583473773,-150.21630841,0.00022892,2]
[375202832,1753583473783,-570.94,0.00022972,3]
[375202833,1753583473794,-570.94,0.00022972,6]
[375202834,1753583473804,-168.23,0.00022976,2]
[375202835,1753583473813,-1708.02904311,0.00023,15]
[375202836,1753583473826,-282.72,0.00023,15]
[375202837,1753583473837,-833.13662808,0.00023,15]
[375202838,1753583473850,-1025.62853026,0.00023,15]
[375202839,1753583473862,-14741.2202871,0.00023,15]
[375202840,1753583473874,-216.01841554,0.00023,3]
[375202841,1753583473884,-160.0,0.00023,2]
[375202842,1753583473894,-4389.18732489,0.00023003,8]
[375202843,1753583473903,-4000.0,0.00023008,2]
[375202844,1753583473913,-460.0,0.00023013,2]
[375202845,1753583473922,-547.84,0.00023013,2]
[375202846,1753583473932,-631.34,0.00023013,2]
[375202847,1753583473942,-460.0,0.00023013,2]
[375202848,1753583473951,-532.26,0.00023013,2]
[375202849,1753583473961,-460.0,0.00023013,2]
[375202850,1753583473971,-822.33,0.00023013,2]
[375202851,1753583473981,-163.40006145,0.00023013,2]
[375202852,1753583473992,-876.43,0.00023013,2]
[375202853,1753583474003,-494.95,0.00023013,2]
[375202854,1753583474013,-460.0,0.00023013,2]
[375202855,1753583474023,-891.87,0.00023013,2]
[375202856,1753583474034,-460.0,0.00023013,2]
[375202857,1753583474044,-460.0,0.00023013,2]
[375202858,1753583474054,-460.0,0.00023013,2]
[375202859,1753583474066,-460.0,0.00023013,2]
[375202860,1753583474077,-513.69,0.00023013,2]
[375202861,1753583474088,-460.0,0.00023013,2]
[375202862,1753583474100,-262.73289835,0.00023013,2]
[375202863,1753583474110,-499.86,0.00023013,2]
[375202864,1753583474121,-460.0,0.00023013,2]
[375202865,1753583474133,-460.0,0.00023013,2]
[375202866,1753583474142,-498.19,0.00023013,2]
[375202867,1753583474153,-460.0,0.00023013,2]
[375202868,1753583474163,-460.0,0.00023013,2]
[375202869,1753583474175,-127.32136367,0.00023013,2]
[375202870,1753583474188,-2041.34863633,0.00023013,2]
[375202871,1753583474199,-460.0,0.00023013,2]
[375202872,1753583474208,-533.42,0.00023013,2]
[375202873,1753583474218,-990.56,0.00023013,2]
[375202874,1753583474227,-460.0,0.00023013,2]
[375202875,1753583474237,-759.02,0.00023013,2]
[375202876,1753583474247,-569.57,0.00023013,2]
[375202877,1753583474256,-460.0,0.00023013,2]
[375202878,1753583474266,-460.0,0.00023013,2]
[375202879,1753583474276,-734.23,0.00023013,2]
[375202880,1753583474286,-708.32,0.00023013,2]
[375202881,1753583474296,-460.0,0.00023013,2]
[375202882,1753583474306,-468.15217787,0.00023013,2]
[375202883,1753583474315,-2306.74,0.00023013,2]
[375202884,1753583474326,-491.72,0.00023013,2]
[375202885,1753583474335,-688.32,0.00023013,2]
[375202886,1753583474345,-632.34,0.00023013,2]
[375202887,1753583474355,-460.0,0.00023013,2]
[375202888,1753583474366,-670.75,0.00023013,2]
[375202889,1753583474472,-3263.29,0.00023013,2]
[375202890,1753583474488,-516.66,0.00023013,2]
[375202891,1753583474498,-1875.66,0.00023013,2]
[375202892,1753583474508,-4844.33,0.00023013,2]
[375202893,1753583474518,-1340.76,0.00023013,2]
[375202894,1753583474531,-460.0,0.00023013,2]
[375202895,1753583474541,-599.61,0.00023013,2]
[375202896,1753583474550,-629.06,0.00023013,2]
[375202897,1753583474561,-686.34551338,0.00023013,2]
[375202898,1753583496029,31795.14852991,0.00018978,2]
[375202899,1753583496052,40000.0,0.00018978,2]
[375202900,1753583496073,16863.24189076,0.00018978,2]
[375202901,1753583506103,5000.0,0.0001901,2]
[375202902,1753583521938,5000.0,0.0001901,2]
[375202903,1753583537309,5000.0,0.0001901,2]
[375202904,1753583553590,5000.0,0.0001901,2]
[375202905,1753583564557,1402.37176775,0.00025742,120]
[375202906,1753583569674,3136.75810924,0.0001901,2]
[375202907,1753583569696,1863.24189076,0.0001901,2]
[375202908,1753583585743,-180.15767691,0.00019077,2]
[375202909,1753583586491,5000.0,0.0001901,2]
[375202910,1753583602167,5000.0,0.0001901,2]
[375202911,1753583617504,5000.0,0.0001901,2]
[375202912,1753583633047,5000.0,0.0001901,2]
[375202913,1753583633913,456.038103,0.0001844,2]
[375202914,1753583634282,854.50390181,0.00018479,2]
[375202915,1753583649592,5000.0,0.0001901,2]
[375202916,1753583659580,-175.02566768,0.00019049,2]
[375202917,1753583661271,-124.97433232,0.00019049,2]
[375202918,1753583661293,-64.86799077,0.0001905,2]
[375202919,1753583662613,11826.21610443,0.00018978,2]
[375202920,1753583662636,40000.0,0.00018978,2]
[375202921,1753583662658,40000.0,0.00018978,2]
[375202924,1753583808237,10000.0,0.00017884,2]
[375202925,1753583843244,256.11569004,0.00017932,2]
[375202926,1753583853349,250.0,0.00017633,2]
[375202927,1753583858275,5000.0,0.0001801,2]
[375202928,1753583877650,5000.0,0.0001801,2]
[375202930,1753583893439,5000.0,0.0001801,2]
[375202933,1753583908868,5000.0,0.0001801,2]
[375202934,1753583916475,-221.37704264,0.00018077,2]
[375202935,1753583921664,-295.496854,0.00018077,2]
[375202936,1753583924174,5000.0,0.0001801,2]
[375202939,1753583936807,1043.7732586,0.00017535,2]
[375202940,1753583937147,249.05359,0.00017593,2]
[375202941,1753583937490,249.05359,0.00017652,2]
[375202942,1753583937841,249.05359,0.0001771,2]
[375202943,1753583939954,1563.15886921,0.00017977,2]
[375202944,1753583940963,1139.79141215,0.0001801,2]
[375202945,1753583940987,3860.20858785,0.0001801,2]
[375202948,1753583948360,157.18637548,7.1e-07,2]
[375202949,1753583948570,157.18637548,7.1e-07,2]
[375202950,1753583948682,157.18637548,7.1e-07,2]
[375202951,1753583948797,157.18637548,7.1e-07,2]
[375202952,1753583948893,157.18637548,7.1e-07,2]
[375202953,1753583948988,157.18637548,7.1e-07,2]
[375202954,1753583949340,157.18637548,7.1e-07,2]
[375202955,1753583949438,157.18637548,7.1e-07,2]
[375202956,1753583949539,157.18637548,7.1e-07,2]
[375202957,1753583949717,157.18637548,7.1e-07,2]
[375202959,1753583956765,5000.0,0.0001801,2]
[375202962,1753583963134,220.757482,0.00013699,2]
[375202965,1753583973309,5000.0,0.0001801,2]
[375202968,1753583985439,-575.42045336,0.00018077,2]
[375202969,1753583985468,-165.548652,0.00018077,2]
[375202970,1753583985493,-205.35909458,0.00018098,2]
[375202971,1753583985517,-165.548652,0.00018137,2]
[375202972,1753583985540,-165.548652,0.00018198,2]
[375202973,1753583985561,-165.548652,0.00018258,2]
[375202974,1753583985582,-205.35909456,0.00018293,2]
[375202975,1753583985602,-205.35909456,0.00018488,2]
[375202976,1753583985625,-205.35909456,0.00018682,2]
[375202977,1753583985646,-150.0,0.00018684,2]
[375202978,1753583985666,-231.8886925,0.000189,2]
[375202979,1753583985685,-231.88869249,0.000189,2]
[375202980,1753583985704,-231.88869249,0.000189,2]
[375202981,1753583985723,-180.15767691,0.0001895,2]
[375202982,1753583985743,-500.0,0.00018973,2]
[375202983,1753583985762,-500.0,0.00018973,2]
[375202984,1753583985781,-242.12480599,0.00018975,2]
[375202990,1753584042411,165.59518111,0.00018,2]
[375202991,1753584147462,210.0,0.00017932,2]
[375202992,1753584168451,166.0,0.00017975,2]
[375202993,1753584180067,5000.0,0.0001801,2]
[375202994,1753584195366,5000.0,0.0001801,2]
[375202995,1753584211258,5000.0,0.0001801,2]